[Event "*** Titled Tuesday Blitz"]
[Site "Chess.com"]
[Date "2021.04.27"]
[Round "6"]
[White "HanSchut"]
[Black "stolencandy13"]
[Result "1/2-1/2"]
[WhiteElo "2292"]
[BlackElo "2461"]
[TimeControl "180+1"]
[EndTime "11:05:18 PDT"]
[Termination "Game drawn by repetition"]

1. e4 {[%clk 0:03:00.9]} 1... c6 {[%clk 0:02:56]} 2. d4 {[%clk 0:02:59.8]} 2...
d5 {[%clk 0:02:56.9]} 3. e5 {[%clk 0:03:00.2]} 3... Bf5 {[%clk 0:02:56.6]} 4.
Nf3 {[%clk 0:02:59.7]} 4... e6 {[%clk 0:02:56.9]} 5. Be2 {[%clk 0:03:00.2]} 5...
Bg6 {[%clk 0:02:56.6]} 6. O-O {[%clk 0:02:56.5]} 6... Nh6 {[%clk 0:02:56.8]} 7.
c3 {[%clk 0:02:54.7]} 7... Nf5 {[%clk 0:02:53.8]} 8. g3 {[%clk 0:02:51]} 8... a6
{[%clk 0:02:49.3]} 9. Nbd2 {[%clk 0:02:36.5]} 9... c5 {[%clk 0:02:48.2]} 10.
dxc5 {[%clk 0:02:36.9]} 10... Bxc5 {[%clk 0:02:46.6]} 11. Nb3 {[%clk 0:02:35.3]}
11... Be7 {[%clk 0:02:46.1]} 12. Nbd4 {[%clk 0:02:35.1]} 12... Nc6 {[%clk
0:02:46.1]} 13. Nxf5 {[%clk 0:02:31.1]} 13... Bxf5 {[%clk 0:02:46.1]} 14. Re1
{[%clk 0:02:31.1]} 14... O-O {[%clk 0:02:45.1]} 15. Kg2 {[%clk 0:02:30.4]} 15...
Qc7 {[%clk 0:02:45]} 16. Bf4 {[%clk 0:02:18.2]} 16... Rfd8 {[%clk 0:02:37.9]}
17. Bd3 {[%clk 0:02:17.9]} 17... Bxd3 {[%clk 0:02:36.1]} 18. Qxd3 {[%clk
0:02:18.8]} 18... Rac8 {[%clk 0:02:32.8]} 19. h4 {[%clk 0:02:18.2]} 19... b5
{[%clk 0:02:29.4]} 20. Ng5 {[%clk 0:02:18]} 20... Bxg5 {[%clk 0:02:27]} 21. hxg5
{[%clk 0:02:18.4]} 21... d4 {[%clk 0:02:18]} 22. Rh1 {[%clk 0:02:11.9]} 22... g6
{[%clk 0:02:17.5]} 23. g4 {[%clk 0:02:02]} 23... Nxe5 {[%clk 0:02:09.6]} 24. Qh3
{[%clk 0:02:00.5]} 24... Qc6+ {[%clk 0:02:08.2]} 25. f3 {[%clk 0:01:59]} 25...
Qxf3+ {[%clk 0:02:06.5]} 26. Qxf3 {[%clk 0:01:56.7]} 26... Nxf3 {[%clk
0:02:07.4]} 27. Kxf3 {[%clk 0:01:57.2]} 27... dxc3 {[%clk 0:02:08.3]} 28. bxc3
{[%clk 0:01:40.5]} 28... Rxc3+ {[%clk 0:02:07.4]} 29. Be3 {[%clk 0:01:40.8]}
29... Rdd3 {[%clk 0:02:00.6]} 30. Rhe1 {[%clk 0:01:40.6]} 30... Rd5 {[%clk
0:01:40.8]} 31. Kf2 {[%clk 0:01:31.2]} 31... Rc2+ {[%clk 0:01:34.7]} 32. Re2
{[%clk 0:01:29.9]} 32... Rxe2+ {[%clk 0:01:29]} 33. Kxe2 {[%clk 0:01:30.3]}
33... Kg7 {[%clk 0:01:26.9]} 34. Rd1 {[%clk 0:01:22.8]} 34... Rxd1 {[%clk
0:01:10]} 35. Kxd1 {[%clk 0:01:23.7]} 35... f6 {[%clk 0:01:10.5]} 36. gxf6+
{[%clk 0:01:18]} 36... Kxf6 {[%clk 0:01:11.4]} 37. g5+ {[%clk 0:01:18.2]} 37...
Kf5 {[%clk 0:01:08.7]} 38. Ke2 {[%clk 0:01:16.3]} 38... Ke4 {[%clk 0:01:08.6]}
39. Bd2 {[%clk 0:01:11.4]} 39... e5 {[%clk 0:01:05.3]} 40. Bc3 {[%clk
0:00:59.7]} 40... Kf4 {[%clk 0:01:04.3]} 41. Bd2+ {[%clk 0:00:59.4]} 41... Ke4
{[%clk 0:01:04.8]} 42. Bc3 {[%clk 0:00:48]} 42... Kf4 {[%clk 0:00:59.4]} 43.
Bd2+ {[%clk 0:00:47.9]} 43... Ke4 {[%clk 0:00:53.8]} 1/2-1/2

[Event "*** Titled Tuesday Blitz"]
[Site "Chess.com"]
[Date "2021.04.27"]
[Round "6"]
[White "exoticprincess"]
[Black "klimkoj"]
[Result "1-0"]
[WhiteElo "2914"]
[BlackElo "2611"]
[TimeControl "180+1"]
[EndTime "11:05:25 PDT"]
[Termination "exoticprincess won by resignation"]

1. e4 {[%clk 0:03:00.9]} 1... c5 {[%clk 0:02:59.9]} 2. d4 {[%clk 0:03:00.3]}
2... cxd4 {[%clk 0:02:59.7]} 3. c3 {[%clk 0:03:00.4]} 3... dxc3 {[%clk
0:02:59.1]} 4. Nxc3 {[%clk 0:03:01.3]} 4... Nc6 {[%clk 0:02:59.6]} 5. Nf3 {[%clk
0:03:01.9]} 5... a6 {[%clk 0:02:59]} 6. Bc4 {[%clk 0:03:02]} 6... d6 {[%clk
0:02:58.6]} 7. O-O {[%clk 0:03:02.1]} 7... Nf6 {[%clk 0:02:57.8]} 8. Qe2 {[%clk
0:03:02.4]} 8... Bg4 {[%clk 0:02:53]} 9. Rd1 {[%clk 0:03:02.3]} 9... e6 {[%clk
0:02:49.4]} 10. Bf4 {[%clk 0:02:59.5]} 10... Qb8 {[%clk 0:02:49]} 11. h3 {[%clk
0:02:57.9]} 11... Bxf3 {[%clk 0:02:46]} 12. Qxf3 {[%clk 0:02:58.8]} 12... Ne5
{[%clk 0:02:37.1]} 13. Qe2 {[%clk 0:02:58.5]} 13... Be7 {[%clk 0:02:35.3]} 14.
Bb3 {[%clk 0:02:56.7]} 14... O-O {[%clk 0:02:34.9]} 15. Be3 {[%clk 0:02:56.8]}
15... b5 {[%clk 0:02:29.3]} 16. f4 {[%clk 0:02:56.9]} 16... Nc6 {[%clk
0:02:28.3]} 17. f5 {[%clk 0:02:53.4]} 17... b4 {[%clk 0:02:21.6]} 18. Na4 {[%clk
0:02:50.4]} 18... exf5 {[%clk 0:02:08.4]} 19. exf5 {[%clk 0:02:51.3]} 19... Qb7
{[%clk 0:02:08.5]} 20. Rac1 {[%clk 0:02:48.3]} 20... Na5 {[%clk 0:01:58.1]} 21.
Nb6 {[%clk 0:02:33.5]} 21... Nxb3 {[%clk 0:01:52.7]} 22. axb3 {[%clk 0:02:34.4]}
22... Rae8 {[%clk 0:01:48.7]} 23. Qd3 {[%clk 0:02:34.1]} 23... Bd8 {[%clk
0:01:45]} 24. Nc4 {[%clk 0:02:33.4]} 24... d5 {[%clk 0:01:44.8]} 25. Nd6 {[%clk
0:02:31.9]} 25... Rxe3 {[%clk 0:01:41.9]} 26. Nxb7 {[%clk 0:02:28.8]} 26... Rxd3
{[%clk 0:01:30.6]} 27. Rxd3 {[%clk 0:02:29.7]} 27... Bb6+ {[%clk 0:01:30.7]} 28.
Kf1 {[%clk 0:02:30.1]} 28... Rb8 {[%clk 0:01:24.3]} 29. Nd6 {[%clk 0:02:28.5]}
29... Kf8 {[%clk 0:01:22.5]} 30. Rc6 {[%clk 0:02:20.4]} 30... a5 {[%clk
0:00:36.3]} 31. g4 {[%clk 0:02:16.9]} 31... h6 {[%clk 0:00:35.1]} 32. Kg2 {[%clk
0:02:11.6]} 32... Bd8 {[%clk 0:00:34.7]} 33. Kf3 {[%clk 0:02:07.7]} 33... Ke7
{[%clk 0:00:35]} 34. h4 {[%clk 0:01:54.9]} 34... Kd7 {[%clk 0:00:33.9]} 35. Ra6
{[%clk 0:01:54.8]} 35... Bc7 {[%clk 0:00:34.3]} 36. Nxf7 {[%clk 0:01:53.7]}
36... Rf8 {[%clk 0:00:32.2]} 37. Rxf6 {[%clk 0:01:49.6]} 37... gxf6 {[%clk
0:00:30.8]} 38. Nxh6 {[%clk 0:01:50.5]} 38... Kd6 {[%clk 0:00:28]} 39. g5 {[%clk
0:01:50.2]} 39... fxg5 {[%clk 0:00:26.8]} 40. hxg5 {[%clk 0:01:51.1]} 40... Bd8
{[%clk 0:00:27.4]} 41. Kg4 {[%clk 0:01:50.6]} 41... Ke5 {[%clk 0:00:17]} 42.
Re3+ {[%clk 0:01:38.3]} 42... Kd6 {[%clk 0:00:17.4]} 43. Re6+ {[%clk 0:01:39.2]}
43... Kd7 {[%clk 0:00:17.9]} 44. g6 {[%clk 0:01:36.6]} 1-0

[Event "*** Titled Tuesday Blitz"]
[Site "Chess.com"]
[Date "2021.04.27"]
[Round "6"]
[White "Steegersee"]
[Black "niki_2003"]
[Result "1-0"]
[WhiteElo "2200"]
[BlackElo "2028"]
[TimeControl "180+1"]
[EndTime "11:05:25 PDT"]
[Termination "Steegersee won by checkmate"]

1. e4 {[%clk 0:02:25]} 1... c5 {[%clk 0:02:59.2]} 2. Nf3 {[%clk 0:02:23.7]} 2...
d6 {[%clk 0:02:59.2]} 3. d4 {[%clk 0:02:22.1]} 3... cxd4 {[%clk 0:02:59.3]} 4.
Nxd4 {[%clk 0:02:22.7]} 4... a6 {[%clk 0:02:59.3]} 5. Nc3 {[%clk 0:02:19.1]}
5... Nf6 {[%clk 0:02:59.4]} 6. Bg5 {[%clk 0:02:18.2]} 6... e6 {[%clk 0:02:56.6]}
7. f4 {[%clk 0:02:14]} 7... Be7 {[%clk 0:02:56.4]} 8. Qf3 {[%clk 0:02:09.4]}
8... h6 {[%clk 0:02:55.4]} 9. Bxf6 {[%clk 0:02:07.7]} 9... Bxf6 {[%clk
0:02:53.6]} 10. O-O-O {[%clk 0:02:08.2]} 10... Qb6 {[%clk 0:02:49.1]} 11. Nb3
{[%clk 0:02:02.4]} 11... Nc6 {[%clk 0:02:47.3]} 12. Rxd6 {[%clk 0:01:52.9]}
12... g5 {[%clk 0:02:41.5]} 13. e5 {[%clk 0:01:41.9]} 13... Be7 {[%clk
0:02:38.8]} 14. Rd1 {[%clk 0:01:39.7]} 14... gxf4 {[%clk 0:02:38.4]} 15. Kb1
{[%clk 0:01:25.2]} 15... Nxe5 {[%clk 0:02:36.8]} 16. Qxf4 {[%clk 0:01:24.3]}
16... Ng6 {[%clk 0:02:34.4]} 17. Qd4 {[%clk 0:01:09.3]} 17... Qxd4 {[%clk
0:02:32.9]} 18. Nxd4 {[%clk 0:01:10.2]} 18... O-O {[%clk 0:02:32.6]} 19. Bd3
{[%clk 0:01:08.7]} 19... Nf4 {[%clk 0:02:29.1]} 20. g3 {[%clk 0:01:00.2]} 20...
Nxd3 {[%clk 0:02:25.1]} 21. Rxd3 {[%clk 0:01:01.1]} 21... b5 {[%clk 0:02:21.9]}
22. Nc6 {[%clk 0:00:54.1]} 22... Bc5 {[%clk 0:02:16.5]} 23. Ne4 {[%clk
0:00:48.3]} 23... Bb7 {[%clk 0:02:15.3]} 24. Nxc5 {[%clk 0:00:40.1]} 24... Bxc6
{[%clk 0:02:14.4]} 25. Rhd1 {[%clk 0:00:36.7]} 25... Bd5 {[%clk 0:02:13.4]} 26.
Nd7 {[%clk 0:00:35.3]} 26... Rfe8 {[%clk 0:02:05.7]} 27. Nf6+ {[%clk 0:00:34.9]}
27... Kg7 {[%clk 0:02:04]} 28. Nxd5 {[%clk 0:00:35.8]} 28... exd5 {[%clk
0:02:03.3]} 29. Rxd5 {[%clk 0:00:36.7]} 29... Re6 {[%clk 0:02:02.5]} 30. b3
{[%clk 0:00:34.5]} 30... Rae8 {[%clk 0:02:02.8]} 31. Kb2 {[%clk 0:00:28.7]}
31... Re2 {[%clk 0:02:02.4]} 32. R1d2 {[%clk 0:00:28.6]} 32... R8e5 {[%clk
0:01:53.8]} 33. a4 {[%clk 0:00:21.5]} 33... Rxd5 {[%clk 0:01:48.7]} 34. Rxe2
{[%clk 0:00:18.1]} 34... bxa4 {[%clk 0:01:46.3]} 35. bxa4 {[%clk 0:00:19]} 35...
a5 {[%clk 0:01:46.6]} 36. Kb3 {[%clk 0:00:17.8]} 36... Re5 {[%clk 0:01:44.1]}
37. Rxe5 {[%clk 0:00:17.3]} 37... Kf6 {[%clk 0:01:44]} 38. Rxa5 {[%clk
0:00:17.9]} 38... Kg6 {[%clk 0:01:43.9]} 39. Rb5 {[%clk 0:00:18.5]} 39... f6
{[%clk 0:01:44]} 40. a5 {[%clk 0:00:19.4]} 40... f5 {[%clk 0:01:43.8]} 41. a6
{[%clk 0:00:20.3]} 41... Kg5 {[%clk 0:01:44.3]} 42. a7 {[%clk 0:00:20.1]} 42...
Kg4 {[%clk 0:01:45.2]} 43. a8=Q {[%clk 0:00:19.3]} 43... Kh3 {[%clk 0:01:46.1]}
44. Qf3 {[%clk 0:00:19.6]} 44... Kxh2 {[%clk 0:01:47]} 45. Rxf5 {[%clk
0:00:16.5]} 45... h5 {[%clk 0:01:47.1]} 46. Rxh5+ {[%clk 0:00:15.6]} 46... Kg1
{[%clk 0:01:48]} 47. Rh1# {[%clk 0:00:16.2]} 1-0

[Event "*** Titled Tuesday Blitz"]
[Site "Chess.com"]
[Date "2021.04.27"]
[Round "6"]
[White "Omk124"]
[Black "LenkaPtacnikova"]
[Result "1-0"]
[WhiteElo "2560"]
[BlackElo "2200"]
[TimeControl "180+1"]
[EndTime "11:05:39 PDT"]
[Termination "Omk124 won by resignation"]

1. e4 {[%clk 0:03:00.9]} 1... c5 {[%clk 0:02:58.7]} 2. Nf3 {[%clk 0:03:00.8]}
2... e6 {[%clk 0:02:58.9]} 3. d4 {[%clk 0:03:00.7]} 3... cxd4 {[%clk 0:02:59.6]}
4. Nxd4 {[%clk 0:03:01.6]} 4... a6 {[%clk 0:02:59.6]} 5. c4 {[%clk 0:03:02.2]}
5... Nf6 {[%clk 0:02:58.6]} 6. Nc3 {[%clk 0:03:02.5]} 6... Qc7 {[%clk
0:02:58.8]} 7. a3 {[%clk 0:03:00.9]} 7... Nc6 {[%clk 0:02:58.5]} 8. Be3 {[%clk
0:03:00.7]} 8... Be7 {[%clk 0:02:52.3]} 9. Be2 {[%clk 0:03:01]} 9... O-O {[%clk
0:02:50.6]} 10. O-O {[%clk 0:03:01]} 10... b6 {[%clk 0:02:44.5]} 11. Rc1 {[%clk
0:03:00.7]} 11... Bb7 {[%clk 0:02:44.4]} 12. f3 {[%clk 0:03:01.3]} 12... Ne5
{[%clk 0:02:42.4]} 13. Kh1 {[%clk 0:02:53.9]} 13... Rac8 {[%clk 0:02:28.6]} 14.
b4 {[%clk 0:02:48.1]} 14... d6 {[%clk 0:02:23.1]} 15. Na4 {[%clk 0:02:47.4]}
15... Ned7 {[%clk 0:02:06.8]} 16. Qe1 {[%clk 0:02:42.2]} 16... Qb8 {[%clk
0:02:05.5]} 17. Nb3 {[%clk 0:02:40]} 17... Bc6 {[%clk 0:02:00.2]} 18. Nc3 {[%clk
0:02:39.7]} 18... d5 {[%clk 0:01:53.3]} 19. exd5 {[%clk 0:02:38.1]} 19... exd5
{[%clk 0:01:52.7]} 20. cxd5 {[%clk 0:02:31.8]} 20... Nxd5 {[%clk 0:01:51.9]} 21.
Bxa6 {[%clk 0:02:25.7]} 21... Nxe3 {[%clk 0:01:45]} 22. Bxc8 {[%clk 0:02:17.7]}
22... Nxf1 {[%clk 0:01:44]} 23. Bxd7 {[%clk 0:02:17.9]} 23... Bxd7 {[%clk
0:01:42.3]} 24. Qxe7 {[%clk 0:02:17.8]} 24... Be6 {[%clk 0:01:42.1]} 25. Rxf1
{[%clk 0:02:15.3]} 25... Bxb3 {[%clk 0:01:40.9]} 26. Ne4 {[%clk 0:02:12.6]}
26... Rd8 {[%clk 0:01:30.5]} 27. Rc1 {[%clk 0:02:10.6]} 27... h6 {[%clk
0:01:25.6]} 28. h3 {[%clk 0:02:09.1]} 28... Bd5 {[%clk 0:01:12.4]} 29. Rc7
{[%clk 0:02:07.3]} 29... Be6 {[%clk 0:01:05]} 30. Nd6 {[%clk 0:02:05]} 30... Rf8
{[%clk 0:00:42.5]} 31. a4 {[%clk 0:01:30.1]} 31... Qa8 {[%clk 0:00:40.6]} 32.
Ra7 {[%clk 0:01:23.7]} 32... Qc6 {[%clk 0:00:35.8]} 33. Qc7 {[%clk 0:01:15.8]}
33... Qd5 {[%clk 0:00:20.1]} 34. Qxb6 {[%clk 0:01:12.4]} 34... g5 {[%clk
0:00:18.8]} 35. Ne4 {[%clk 0:01:12]} 35... Qd1+ {[%clk 0:00:17.6]} 36. Kh2
{[%clk 0:01:12.1]} 36... Kg7 {[%clk 0:00:17.7]} 37. Qc5 {[%clk 0:01:10.2]} 1-0

[Event "*** Titled Tuesday Blitz"]
[Site "Chess.com"]
[Date "2021.04.27"]
[Round "6"]
[White "northridgehawk"]
[Black "Fighterman91"]
[Result "1-0"]
[WhiteElo "2370"]
[BlackElo "2611"]
[TimeControl "180+1"]
[EndTime "11:05:40 PDT"]
[Termination "northridgehawk won on time"]

1. e4 {[%clk 0:03:00.9]} 1... c5 {[%clk 0:02:57.3]} 2. Nf3 {[%clk 0:03:00.8]}
2... d6 {[%clk 0:02:57.6]} 3. d4 {[%clk 0:03:01.7]} 3... cxd4 {[%clk 0:02:58.1]}
4. Nxd4 {[%clk 0:03:02.6]} 4... Nf6 {[%clk 0:02:58.9]} 5. Nc3 {[%clk 0:03:03]}
5... a6 {[%clk 0:02:59.6]} 6. h3 {[%clk 0:03:03.1]} 6... e5 {[%clk 0:02:59.6]}
7. Nde2 {[%clk 0:03:02.4]} 7... h5 {[%clk 0:02:58.7]} 8. g3 {[%clk 0:03:02.5]}
8... Be6 {[%clk 0:02:56.7]} 9. Bg2 {[%clk 0:03:02.9]} 9... Nbd7 {[%clk
0:02:55.2]} 10. a4 {[%clk 0:03:02.8]} 10... Rc8 {[%clk 0:02:49.8]} 11. O-O
{[%clk 0:03:02.2]} 11... Be7 {[%clk 0:02:49.5]} 12. Be3 {[%clk 0:02:58.3]} 12...
O-O {[%clk 0:02:45.4]} 13. Nd5 {[%clk 0:02:57.9]} 13... Nxd5 {[%clk 0:02:45.2]}
14. exd5 {[%clk 0:02:58.8]} 14... Bf5 {[%clk 0:02:46]} 15. c3 {[%clk 0:02:56.7]}
15... Re8 {[%clk 0:02:00.7]} 16. f4 {[%clk 0:02:54.3]} 16... Bh7 {[%clk
0:01:37.7]} 17. Qd2 {[%clk 0:02:47.3]} 17... Nc5 {[%clk 0:01:33.7]} 18. f5
{[%clk 0:02:46.2]} 18... Nb3 {[%clk 0:01:31.1]} 19. Qd1 {[%clk 0:02:45.2]} 19...
Nxa1 {[%clk 0:01:31]} 20. Qxa1 {[%clk 0:02:45]} 20... Bg5 {[%clk 0:01:30.6]} 21.
Qc1 {[%clk 0:02:42.6]} 21... Bxe3+ {[%clk 0:01:25.3]} 22. Qxe3 {[%clk
0:02:43.5]} 22... Qd7 {[%clk 0:01:12.4]} 23. Be4 {[%clk 0:02:42.6]} 23... Qxa4
{[%clk 0:01:09.5]} 24. g4 {[%clk 0:02:22.7]} 24... Rc4 {[%clk 0:01:05.5]} 25.
Ng3 {[%clk 0:02:21.4]} 25... h4 {[%clk 0:01:04.8]} 26. Nh5 {[%clk 0:02:19.4]}
26... f6 {[%clk 0:00:44.8]} 27. Bf3 {[%clk 0:02:02.5]} 27... Qb5 {[%clk
0:00:43.8]} 28. Kh1 {[%clk 0:01:57.4]} 28... Rxc3 {[%clk 0:00:36.8]} 29. Qf2
{[%clk 0:01:53.8]} 29... Rc2 {[%clk 0:00:31.7]} 30. Qg1 {[%clk 0:01:51.8]} 30...
e4 {[%clk 0:00:29]} 31. Bd1 {[%clk 0:01:49.6]} 31... Rxb2 {[%clk 0:00:28.4]} 32.
g5 {[%clk 0:01:49.7]} 32... fxg5 {[%clk 0:00:22.5]} 33. f6 {[%clk 0:01:42.2]}
33... Rf8 {[%clk 0:00:23]} 34. Nxg7 {[%clk 0:01:38.5]} 34... Qxd5 {[%clk
0:00:22.4]} 35. Nf5 {[%clk 0:01:23.3]} 35... e3+ {[%clk 0:00:19.1]} 36. Rf3
{[%clk 0:01:21.6]} 36... Kh8 {[%clk 0:00:03.4]} 37. Ne7 {[%clk 0:01:16.7]} 1-0

[Event "*** Titled Tuesday Blitz"]
[Site "Chess.com"]
[Date "2021.04.27"]
[Round "6"]
[White "volunteers1998"]
[Black "ajdemipopushi"]
[Result "1-0"]
[WhiteElo "2219"]
[BlackElo "2323"]
[TimeControl "180+1"]
[EndTime "11:05:41 PDT"]
[Termination "volunteers1998 won by resignation"]

1. e4 {[%clk 0:03:00.9]} 1... c5 {[%clk 0:02:59.7]} 2. Nf3 {[%clk 0:03:00.7]}
2... g6 {[%clk 0:03:00.1]} 3. d4 {[%clk 0:02:56.2]} 3... cxd4 {[%clk 0:03:00.3]}
4. Nxd4 {[%clk 0:02:54.2]} 4... Bg7 {[%clk 0:03:00.6]} 5. Nc3 {[%clk 0:02:49.3]}
5... Nc6 {[%clk 0:03:01.1]} 6. Be3 {[%clk 0:02:43.2]} 6... Nf6 {[%clk 0:03:01]}
7. Be2 {[%clk 0:02:40]} 7... O-O {[%clk 0:03:00.4]} 8. O-O {[%clk 0:02:37.3]}
8... d5 {[%clk 0:03:00.5]} 9. exd5 {[%clk 0:02:31.3]} 9... Nxd5 {[%clk
0:03:00.6]} 10. Nxd5 {[%clk 0:02:27.2]} 10... Qxd5 {[%clk 0:03:00.1]} 11. Nxc6
{[%clk 0:02:24.1]} 11... Qxc6 {[%clk 0:02:58.1]} 12. Bf3 {[%clk 0:02:20.6]}
12... Qb5 {[%clk 0:02:57.5]} 13. c3 {[%clk 0:02:15.5]} 13... Qxb2 {[%clk
0:02:55]} 14. Qc1 {[%clk 0:02:14.3]} 14... Qxc3 {[%clk 0:02:39.4]} 15. Rb1
{[%clk 0:02:14]} 15... a5 {[%clk 0:02:06.8]} 16. Qxc3 {[%clk 0:02:01.7]} 16...
Bxc3 {[%clk 0:02:06.1]} 17. Rfc1 {[%clk 0:01:56.9]} 17... Bf6 {[%clk 0:02:04.6]}
18. a4 {[%clk 0:01:52.1]} 18... Bf5 {[%clk 0:01:30.8]} 19. Rxb7 {[%clk
0:01:46.5]} 19... Rac8 {[%clk 0:01:30]} 20. Rxc8 {[%clk 0:01:42.2]} 20... Rxc8
{[%clk 0:01:29.6]} 21. Ra7 {[%clk 0:01:38.7]} 21... Rb8 {[%clk 0:01:08.5]} 22.
h3 {[%clk 0:01:34.2]} 22... Be5 {[%clk 0:01:00.4]} 23. g4 {[%clk 0:01:31.5]}
23... Be6 {[%clk 0:00:50.1]} 24. Rxa5 {[%clk 0:01:27.4]} 24... Bd6 {[%clk
0:00:33]} 25. Rb5 {[%clk 0:01:23.9]} 25... Rc8 {[%clk 0:00:28]} 26. a5 {[%clk
0:01:20.7]} 26... h5 {[%clk 0:00:27]} 27. a6 {[%clk 0:01:16.2]} 27... hxg4
{[%clk 0:00:23]} 28. hxg4 {[%clk 0:01:14.2]} 28... Bc4 {[%clk 0:00:21.9]} 29.
Ra5 {[%clk 0:01:10.6]} 29... Bc7 {[%clk 0:00:18]} 30. Ra4 {[%clk 0:01:06.1]}
30... Bb5 {[%clk 0:00:17.6]} 31. Ra1 {[%clk 0:01:03]} 31... Be5 {[%clk
0:00:17.3]} 32. Ra5 {[%clk 0:00:55]} 1-0

[Event "*** Titled Tuesday Blitz"]
[Site "Chess.com"]
[Date "2021.04.27"]
[Round "6"]
[White "Zallio"]
[Black "RamyresCoelho"]
[Result "1-0"]
[WhiteElo "2075"]
[BlackElo "2173"]
[TimeControl "180+1"]
[EndTime "11:05:43 PDT"]
[Termination "Zallio won by resignation"]

1. e4 {[%clk 0:03:00.9]} 1... c5 {[%clk 0:02:59]} 2. Nf3 {[%clk 0:02:59.3]} 2...
d6 {[%clk 0:02:59]} 3. d4 {[%clk 0:02:59.3]} 3... cxd4 {[%clk 0:02:59.9]} 4.
Nxd4 {[%clk 0:03:00]} 4... Nf6 {[%clk 0:03:00.4]} 5. Nc3 {[%clk 0:03:00.2]} 5...
a6 {[%clk 0:03:01.3]} 6. Bg5 {[%clk 0:03:00.2]} 6... e6 {[%clk 0:03:01.5]} 7. f4
{[%clk 0:03:00.1]} 7... Qb6 {[%clk 0:03:02.1]} 8. Nb3 {[%clk 0:02:45.8]} 8...
Be7 {[%clk 0:03:00.9]} 9. Qd2 {[%clk 0:02:38.3]} 9... O-O {[%clk 0:02:59.8]} 10.
O-O-O {[%clk 0:02:37.7]} 10... Nc6 {[%clk 0:03:00.3]} 11. Be2 {[%clk 0:02:25.2]}
11... h6 {[%clk 0:02:57.8]} 12. Bxf6 {[%clk 0:02:22.7]} 12... Bxf6 {[%clk
0:02:57.7]} 13. g4 {[%clk 0:02:23]} 13... Nd4 {[%clk 0:02:41.2]} 14. h4 {[%clk
0:02:13.1]} 14... Nxb3+ {[%clk 0:02:40]} 15. axb3 {[%clk 0:02:13.9]} 15... Bxc3
{[%clk 0:02:18.2]} 16. bxc3 {[%clk 0:02:08.5]} 16... d5 {[%clk 0:02:15.2]} 17.
g5 {[%clk 0:01:58.5]} 17... h5 {[%clk 0:02:06.2]} 18. Bxh5 {[%clk 0:01:52.1]}
18... dxe4 {[%clk 0:02:02.1]} 19. Bg4 {[%clk 0:01:39.7]} 19... e5 {[%clk
0:01:58.3]} 20. f5 {[%clk 0:01:38.9]} 20... e3 {[%clk 0:01:57.8]} 21. Qe2 {[%clk
0:01:24.1]} 21... Qc5 {[%clk 0:01:38]} 22. Kb2 {[%clk 0:01:22.3]} 22... b5
{[%clk 0:01:36.2]} 23. h5 {[%clk 0:01:18.5]} 23... Bb7 {[%clk 0:01:35.6]} 24.
Rh3 {[%clk 0:01:11.9]} 24... Rfd8 {[%clk 0:01:28.4]} 25. Rxd8+ {[%clk
0:01:05.5]} 25... Rxd8 {[%clk 0:01:29.3]} 26. Rxe3 {[%clk 0:01:04.7]} 26... e4
{[%clk 0:01:25.3]} 27. h6 {[%clk 0:01:02.9]} 27... b4 {[%clk 0:01:18.8]} 28.
hxg7 {[%clk 0:01:01.3]} 28... bxc3+ {[%clk 0:01:09.1]} 29. Rxc3 {[%clk
0:00:37.2]} 29... Qd4 {[%clk 0:01:09.1]} 30. Qh2 {[%clk 0:00:30.3]} 30... Kxg7
{[%clk 0:00:59.7]} 31. Qh6+ {[%clk 0:00:25.4]} 31... Kg8 {[%clk 0:00:57.8]} 32.
f6 {[%clk 0:00:25.6]} 1-0

[Event "*** Titled Tuesday Blitz"]
[Site "Chess.com"]
[Date "2021.04.27"]
[Round "6"]
[White "andrewtnb"]
[Black "PotapovaM"]
[Result "0-1"]
[WhiteElo "2259"]
[BlackElo "2573"]
[TimeControl "180+1"]
[EndTime "11:05:44 PDT"]
[Termination "PotapovaM won on time"]

1. d4 {[%clk 0:03:00.9]} 1... Nf6 {[%clk 0:02:59.9]} 2. c4 {[%clk 0:03:00.3]}
2... e6 {[%clk 0:03:00.6]} 3. Nc3 {[%clk 0:03:00.4]} 3... Bb4 {[%clk 0:03:01.2]}
4. e3 {[%clk 0:02:59.9]} 4... O-O {[%clk 0:03:01.4]} 5. Ne2 {[%clk 0:02:59.9]}
5... d5 {[%clk 0:03:01]} 6. a3 {[%clk 0:02:59.6]} 6... Bd6 {[%clk 0:03:01.3]} 7.
cxd5 {[%clk 0:02:56.3]} 7... exd5 {[%clk 0:03:02.2]} 8. Ng3 {[%clk 0:02:56.2]}
8... c5 {[%clk 0:02:59.5]} 9. dxc5 {[%clk 0:02:55.3]} 9... Bxc5 {[%clk
0:02:59.8]} 10. Be2 {[%clk 0:02:45.1]} 10... Nc6 {[%clk 0:02:59.4]} 11. b4
{[%clk 0:02:35.1]} 11... Be7 {[%clk 0:02:59.3]} 12. O-O {[%clk 0:02:21.3]} 12...
d4 {[%clk 0:02:59.1]} 13. exd4 {[%clk 0:02:22.2]} 13... Nxd4 {[%clk 0:02:59.2]}
14. Be3 {[%clk 0:02:21.8]} 14... Nxe2+ {[%clk 0:02:55.7]} 15. Qxe2 {[%clk
0:02:20.6]} 15... Bg4 {[%clk 0:02:48.4]} 16. f3 {[%clk 0:02:18.3]} 16... Be6
{[%clk 0:02:48.8]} 17. Rfd1 {[%clk 0:02:11.7]} 17... Qc8 {[%clk 0:02:40.9]} 18.
Nce4 {[%clk 0:01:37.6]} 18... Nd5 {[%clk 0:02:33.3]} 19. Rac1 {[%clk 0:01:33.8]}
19... Qe8 {[%clk 0:02:32.3]} 20. Bc5 {[%clk 0:01:20.6]} 20... b6 {[%clk
0:02:23.3]} 21. Bxe7 {[%clk 0:00:38]} 21... Qxe7 {[%clk 0:02:24.2]} 22. Nc3
{[%clk 0:00:38.1]} 22... Nf4 {[%clk 0:02:20]} 23. Qe3 {[%clk 0:00:35.6]} 23...
Qg5 {[%clk 0:02:18.6]} 24. Re1 {[%clk 0:00:05.6]} 24... Rac8 {[%clk 0:02:02]}
25. Rcd1 {[%clk 0:00:03.5]} 25... h5 {[%clk 0:01:47.6]} 26. Nce4 {[%clk
0:00:03]} 26... Qh6 {[%clk 0:01:48]} 27. h4 {[%clk 0:00:03.2]} 27... Rc2 {[%clk
0:01:44.4]} 28. Rd2 {[%clk 0:00:03.7]} 28... Rcc8 {[%clk 0:01:35.5]} 29. Kh2
{[%clk 0:00:03.6]} 29... Rce8 {[%clk 0:01:26.1]} 30. Ng5 {[%clk 0:00:03.5]}
30... Ng6 {[%clk 0:01:14.3]} 31. Nxe6 {[%clk 0:00:02.3]} 31... Qxe3 {[%clk
0:01:09.6]} 32. Rxe3 {[%clk 0:00:03.2]} 32... fxe6 {[%clk 0:01:09.8]} 33. Nxh5
{[%clk 0:00:01.9]} 33... Nxh4 {[%clk 0:01:09]} 34. Rd7 {[%clk 0:00:02.3]} 34...
Nf5 {[%clk 0:01:09.7]} 0-1